bitfinex/quotes_BTCUSD_20250711
["timestamp","ask_amount","ask_price","bid_price","bid_amount"]
[1752249044821,0.31358812,117270.0,117260.0,0.35648993]
[1752249045036,0.79366732,117270.0,117260.0,0.0001]
[1752249045460,0.79966732,117270.0,117260.0,0.0001]
[1752249046119,0.04744022,117270.0,117260.0,0.08552993]
[1752249047023,0.06449378,117270.0,117260.0,0.08552993]
[1752249047238,0.06449378,117270.0,117260.0,0.35632993]
[1752249047239,0.74922808,117270.0,117260.0,0.35632993]
[1752249047901,0.06449436,117270.0,117260.0,0.35632993]
[1752249048127,0.06449392,117270.0,117260.0,0.35632993]
[1752249048327,0.23504126,117270.0,117260.0,0.35632993]
[1752249048530,0.23504126,117270.0,117260.0,0.2709]
[1752249048733,0.23504126,117270.0,117260.0,0.0001]
[1752249048942,0.87610105,117270.0,117260.0,0.0001]
[1752249050009,0.032,117240.0,117230.0,0.27076]
[1752249050220,0.04735606,117240.0,117230.0,0.35618993]
[1752249050431,0.04176684,117240.0,117230.0,0.35618993]
[1752249050881,0.05029591,117240.0,117230.0,0.35618993]
[1752249051093,0.05882513,117240.0,117230.0,0.35618993]
[1752249051301,0.05029591,117240.0,117230.0,0.35618993]
[1752249051478,0.04979591,117240.0,117230.0,0.35618993]
[1752249051724,0.04126684,117240.0,117230.0,0.35618993]
[1752249052186,0.02420899,117240.0,117230.0,0.35618993]
[1752249052395,0.02633899,117240.0,117230.0,0.35718993]
[1752249052609,0.00506899,117240.0,117230.0,0.35920993]
[1752249052841,0.002,117240.0,117230.0,1.05253476]
[1752249053075,0.002,117240.0,117230.0,1.04400474]
[1752249053291,0.002,117240.0,117230.0,0.54687504]
[1752249053490,0.002,117240.0,117230.0,0.35920993]
[1752249053892,0.002,117240.0,117230.0,0.53834488]
[1752249054013,0.002,117240.0,117230.0,0.35920993]
[1752249054218,0.002,117240.0,117230.0,0.36784016]
[1752249054497,0.002,117240.0,117230.0,0.35930993]
[1752249054695,0.002,117240.0,117230.0,0.54697497]
[1752249054917,0.002,117240.0,117230.0,0.55550484]
[1752249055428,0.002,117240.0,117230.0,1.07269436]
[1752249056009,0.002,117240.0,117230.0,1.13723521]
[1752249056631,0.002,117240.0,117230.0,1.12029561]
[1752249056845,0.002,117240.0,117230.0,0.35942993]
[1752249056846,0.00413,117240.0,117230.0,0.35942993]
[1752249057047,0.02347,117240.0,117230.0,0.35740993]
[1752249057191,0.05047,117240.0,117230.0,0.35740993]
[1752249060505,0.05047,117240.0,117230.0,0.08652993]
[1752249060738,0.56465872,117240.0,117230.0,0.22208993]
[1752249060939,0.25517689,117240.0,117230.0,0.22208993]
[1752249061147,0.07605722,117240.0,117230.0,0.08652993]
[1752249061346,0.05047,117240.0,117230.0,0.08652993]
[1752249062565,0.05047,117240.0,117230.0,0.08542993]
[1752249063995,0.002,117240.0,117230.0,0.59310972]
[1752249064425,0.02003,117240.0,117230.0,0.08744993]
[1752249065245,0.02003,117240.0,117230.0,0.08958248]
[1752249066387,0.23731831,117240.0,117230.0,0.08542993]
[1752249066598,0.75150746,117240.0,117220.0,0.13564]
[1752249066806,0.04574,117230.0,117220.0,0.22106993]
[1752249067050,0.002,117240.0,117220.0,0.72874972]
[1752249067255,0.04774,117240.0,117230.0,0.08756248]
[1752249067456,0.04693,117240.0,117230.0,0.08744993]
[1752249067671,0.04787,117240.0,117230.0,0.08744993]
[1752249067880,0.04787,117240.0,117230.0,0.08542993]
[1752249068095,0.04787,117240.0,117230.0,0.08558023]
[1752249068941,0.05639893,117240.0,117230.0,0.08558023]
[1752249069143,0.38787,117240.0,117230.0,0.08558023]
[1752249069374,0.40492807,117240.0,117230.0,0.08558023]
[1752249069619,0.41345715,117240.0,117230.0,0.08658023]
[1752249069820,0.40492793,117240.0,117230.0,0.08658023]
[1752249070062,0.41345707,117240.0,117230.0,0.08658023]
[1752249070268,0.07345707,117240.0,117230.0,0.08658023]
[1752249070467,0.41345707,117240.0,117230.0,0.22218023]
[1752249070682,0.42198629,117240.0,117230.0,0.08658023]
[1752249070918,0.60110604,117240.0,117230.0,0.22214023]
[1752249071139,0.58404811,117240.0,117230.0,0.0011503]
[1752249071342,0.57551904,117240.0,117230.0,0.0011503]
[1752249072315,1.28419229,117240.0,117230.0,0.0011503]
[1752249072525,1.21669883,117240.0,117230.0,0.0011503]
[1752249072965,1.30212876,117240.0,117230.0,0.0011503]
[1752249073348,1.30212876,117240.0,117230.0,0.0001503]
[1752249073629,0.56909706,117210.0,117200.0,0.002]
[1752249073834,0.70662706,117210.0,117200.0,0.08742993]
[1752249074129,0.70964706,117210.0,117200.0,0.002]
[1752249074284,0.70111559,117210.0,117200.0,0.002]
[1752249074488,1.20677538,117210.0,117200.0,0.002]
[1752249075687,1.23574819,117210.0,117200.0,0.002]
[1752249076722,1.24570467,117210.0,117200.0,0.004]
[1752249076875,1.23574819,117210.0,117200.0,0.002]
[1752249077088,1.23674819,117210.0,117200.0,0.002]
[1752249077695,1.23774819,117210.0,117200.0,0.002]
[1752249078082,1.34767007,117210.0,117200.0,0.002]
[1752249078289,1.34767007,117210.0,117190.0,0.0001]
[1752249078290,0.22828073,117200.0,117190.0,0.0001]
[1752249078493,0.82444045,117200.0,117190.0,0.0001]
[1752249079321,0.8389813,117200.0,117190.0,0.0001]
[1752249080862,0.24388293,117200.0,117190.0,0.0001]
[1752249081200,0.38128293,117200.0,117190.0,0.0001]
[1752249081401,0.88694272,117200.0,117190.0,0.0001]
[1752249081736,1.05780258,117200.0,117190.0,0.0001]
[1752249081949,0.97237265,117200.0,117190.0,0.0001]
[1752249083856,0.9869135,117200.0,117190.0,0.0001]
[1752249084164,0.57179602,117190.0,117180.0,0.002]
[1752249084365,1.16795574,117190.0,117180.0,0.002]
[1752249084822,1.16795574,117190.0,117180.0,0.00208486]
[1752249086156,1.27092652,117190.0,117180.0,0.00208486]
[1752249086357,0.74512064,117170.0,117160.0,0.002]
[1752249086583,1.30804057,117170.0,117160.0,0.002]
[1752249086787,1.31106057,117170.0,117160.0,0.002]
[1752249087445,1.08555269,117150.0,117140.0,0.002]
[1752249087660,1.22304269,117150.0,117140.0,0.002]
[1752249088085,1.22606269,117150.0,117140.0,0.002]
[1752249088916,1.22621252,117150.0,117140.0,0.002]
[1752249089117,1.09077252,117150.0,117140.0,0.002]
[1752249089320,0.58511273,117150.0,117140.0,0.002]
[1752249089532,0.35722101,117150.0,117140.0,0.00599]
[1752249089755,0.00014983,117150.0,117140.0,0.00599]
[1752249089967,0.00014983,117150.0,117140.0,0.09141993]
[1752249090182,0.00014983,117150.0,117140.0,0.09441993]
[1752249090397,0.00014983,117150.0,117140.0,0.18801339]
[1752249090597,0.00014983,117150.0,117140.0,0.21511339]
[1752249091694,0.00014983,117150.0,117140.0,0.89150905]
[1752249091903,0.00853409,117170.0,117150.0,0.0261]
[1752249092127,0.06555307,117190.0,117160.0,0.09041993]
[1752249092349,0.02560032,117180.0,117160.0,0.09041993]
[1752249092601,0.01706666,117180.0,117160.0,0.09041993]
[1752249092827,0.36377283,117190.0,117160.0,0.09041993]
[1752249093061,0.02560032,117180.0,117160.0,0.09041993]
[1752249093297,0.02560002,117180.0,117160.0,0.09041993]
[1752249093752,0.01706651,117180.0,117160.0,0.09441993]
[1752249093983,0.04913621,117190.0,117160.0,0.09441993]
[1752249094214,0.36223549,117190.0,117160.0,0.09441993]
[1752249094450,0.36774842,117190.0,117160.0,0.12051993]
[1752249094695,0.00214999,117190.0,117170.0,0.003]
[1752249094971,0.02774812,117190.0,117180.0,0.08741993]
[1752249095201,0.19841114,117190.0,117180.0,0.08741993]
[1752249095435,0.02774812,117190.0,117180.0,0.08741993]
[1752249095653,0.19841114,117190.0,117180.0,0.08741993]
[1752249096059,0.20141114,117190.0,117180.0,0.08741993]
[1752249096279,0.21194429,117190.0,117180.0,0.08741993]
[1752249096684,0.20341114,117190.0,117180.0,0.08741993]
[1752249097256,0.21194414,117190.0,117180.0,0.08741993]
[1752249097466,0.72267393,117190.0,117180.0,0.08542993]
[1752249097662,0.72267393,117190.0,117150.0,0.003]
[1752249097663,0.00853322,117180.0,117160.0,0.13544]
[1752249097864,0.01706666,117180.0,117170.0,0.08741993]
[1752249098064,0.01706658,117180.0,117170.0,0.08741993]
[1752249098677,0.39247194,117190.0,117170.0,0.08741993]
[1752249098880,0.34538483,117190.0,117170.0,0.08741993]
[1752249099081,0.02221541,117190.0,117170.0,0.08955358]
[1752249099277,0.03074805,117190.0,117170.0,0.09255358]
[1752249099492,0.20994574,117190.0,117170.0,0.09255358]
[1752249099718,0.001,117180.0,117170.0,0.09255358]
[1752249100307,1.09199476,117180.0,117170.0,0.0001]
[1752249100714,1.08346118,117180.0,117170.0,0.0001]
[1752249101088,1.08246118,117180.0,117170.0,0.0001]
[1752249101698,1.08346118,117180.0,117170.0,0.0001]
[1752249102423,1.08446118,117180.0,117170.0,0.0001]
[1752249102631,0.002,117180.0,117170.0,0.08753993]
[1752249103084,0.18974425,117180.0,117170.0,0.08753993]
[1752249103294,0.19827791,117180.0,117170.0,0.08753993]
[1752249103520,0.01053322,117180.0,117170.0,0.08753993]
[1752249103719,0.002,117180.0,117170.0,0.08753993]
[1752249103930,0.18974439,117180.0,117170.0,0.08753993]
[1752249104331,0.002,117180.0,117170.0,0.08753993]
[1752249104533,0.01053329,117180.0,117170.0,0.08753993]
[1752249104702,0.01906658,117180.0,117170.0,0.08753993]
[1752249105655,0.01053322,117180.0,117170.0,0.08753993]
[1752249105849,0.002,117180.0,117170.0,0.08753993]
[1752249106063,0.002,117180.0,117170.0,0.38701993]
[1752249106892,0.001,117180.0,117170.0,0.38701993]
[1752249107732,0.01921512,117190.0,117170.0,0.38701993]
[1752249107935,0.01921512,117190.0,117180.0,0.08542993]
[1752249108137,0.02774783,117190.0,117180.0,0.08743993]
[1752249108758,0.03628069,117190.0,117180.0,0.08743993]
[1752249108960,0.02774783,117190.0,117180.0,0.08743993]
[1752249109361,0.01068248,117190.0,117180.0,0.08743993]
[1752249109505,0.01168248,117190.0,117180.0,0.08743993]
[1752249109707,0.00414999,117190.0,117180.0,0.08743993]
[1752249110131,0.01268248,117190.0,117180.0,0.08743993]
[1752249110557,0.00414999,117190.0,117180.0,0.08743993]
[1752249111473,0.01268248,117190.0,117180.0,0.08743993]
[1752249111807,0.02974798,117190.0,117180.0,0.08743993]
[1752249112009,0.0297479,117190.0,117180.0,0.08743993]
[1752249112211,0.04893383,117190.0,117180.0,0.08743993]
[1752249112378,0.01706687,117180.0,117170.0,0.27098]
[1752249112578,0.03069016,117180.0,117170.0,0.35841993]
[1752249112807,0.03922396,117180.0,117170.0,0.35841993]
[1752249112979,0.25436833,117180.0,117170.0,0.08552993]
[1752249113924,0.24583497,117180.0,117170.0,0.08552993]
[1752249115104,0.75149476,117180.0,117170.0,0.0001]
[1752249115305,1.09149476,117180.0,117170.0,0.0001]
[1752249117077,0.58583497,117180.0,117170.0,0.0001]
[1752249117268,1.09149476,117180.0,117170.0,0.0001]
[1752249119868,1.08084118,117180.0,117170.0,0.0001]
[1752249120073,1.08296118,117180.0,117170.0,0.0001]
[1752249120537,0.57730139,117180.0,117170.0,0.0001]
[1752249120808,1.08396118,117180.0,117170.0,0.0001]
[1752249121512,1.08496118,117180.0,117170.0,0.0001]
[1752249122264,1.25582104,117180.0,117170.0,0.0001]
[1752249122478,1.17039111,117180.0,117170.0,0.0001]
[1752249123105,1.30479111,117180.0,117170.0,0.0001]
[1752249123307,1.30820511,117180.0,117170.0,0.0001]
[1752249123527,1.30920511,117180.0,117170.0,0.0001]
[1752249123744,1.30924511,117180.0,117170.0,0.0001]
[1752249124830,1.30724511,117180.0,117170.0,0.0001]
[1752249125059,1.31124511,117180.0,117170.0,0.0001]
[1752249125282,1.31424511,117180.0,117170.0,0.0001]
[1752249125487,0.67314532,117180.0,117170.0,0.0001]
[1752249125689,1.31424511,117180.0,117170.0,0.0001]
[1752249127155,1.19334596,117180.0,117170.0,0.0001]
[1752249127364,0.58771539,117180.0,117170.0,0.0001]
[1752249127863,0.37974139,117180.0,117170.0,0.0001]
[1752249128066,0.69394139,117180.0,117170.0,0.00211]
[1752249128237,1.22520118,117180.0,117170.0,0.0001]
[1752249128479,1.22220118,117180.0,117170.0,0.0001]
[1752249128900,0.71254139,117180.0,117170.0,0.0001]
[1752249129144,1.21820118,117180.0,117170.0,0.0001]
[1752249129367,1.22020118,117180.0,117170.0,0.0001]
[1752249130132,1.22520118,117180.0,117170.0,0.0001]
[1752249130472,1.22020118,117180.0,117170.0,0.0001]
[1752249131077,1.22420118,117180.0,117170.0,0.0001]
[1752249133245,0.35453336,117180.0,117170.0,0.00214]
[1752249133466,0.3630668,117180.0,117170.0,0.11559993]
[1752249133688,0.006,117180.0,117170.0,0.11559993]
[1752249133951,0.006,117180.0,117170.0,0.14279993]
[1752249134150,0.02306694,117180.0,117170.0,0.09079993]
[1752249134348,1.39791629,117180.0,117170.0,0.0001]
[1752249134512,1.64791629,117180.0,117170.0,0.0001]
[1752249134674,1.67552529,117180.0,117170.0,0.0001]
[1752249134875,1.60366469,117180.0,117170.0,0.0001]
[1752249135305,1.60266469,117180.0,117170.0,0.0001]
[1752249135538,1.60466469,117180.0,117170.0,0.0001]
[1752249136133,1.46726469,117180.0,117170.0,0.0001]
[1752249136337,1.60266469,117180.0,117170.0,0.0001]
[1752249137165,1.60166469,117180.0,117170.0,0.0001]
[1752249137339,1.11929391,117180.0,117170.0,0.0001]
[1752249137539,1.25469391,117180.0,117170.0,0.0001]
[1752249138047,1.08919391,117180.0,117170.0,0.00214]
[1752249138225,0.66614512,117180.0,117170.0,0.00214]
[1752249138473,0.66314512,117180.0,117170.0,0.00214]
[1752249138679,0.66314512,117180.0,117170.0,0.00537]
[1752249138680,0.0210671,117180.0,117170.0,0.00537]
[1752249138889,0.33367856,117180.0,117170.0,0.00537]
[1752249139096,0.67767856,117180.0,117170.0,0.00537]
[1752249139965,0.3630671,117180.0,117170.0,0.00537]
[1752249140173,0.01453322,117180.0,117170.0,0.11799993]
[1752249140375,0.006,117180.0,117170.0,0.11799993]
[1752249140819,0.01453322,117180.0,117170.0,0.11799993]
[1752249141014,0.01253322,117180.0,117170.0,0.11799993]
[1752249141631,0.01706666,117180.0,117170.0,0.11799993]
[1752249141869,0.01806666,117180.0,117170.0,0.11799993]
[1752249142071,0.69638476,117180.0,117170.0,0.00214]
[1752249142308,0.69440476,117180.0,117170.0,0.00214]
[1752249142515,0.00953336,117180.0,117170.0,0.00537]
[1752249142716,0.03413418,117180.0,117170.0,0.03037]
[1752249142919,0.03413418,117180.0,117170.0,0.00537]
[1752249143137,0.02660068,117180.0,117170.0,0.00537]
[1752249143610,0.01806658,117180.0,117170.0,0.00537]
[1752249143841,0.00953322,117180.0,117170.0,0.00537]
[1752249144068,0.03513412,117180.0,117170.0,0.00537]
[1752249144547,0.70491828,117180.0,117170.0,0.00214]
[1752249144769,0.19925849,117180.0,117170.0,0.00214]
[1752249145179,0.0200471,117180.0,117170.0,0.00214]
[1752249145383,0.00953322,117180.0,117170.0,0.00537]
[1752249145640,0.01806666,117180.0,117170.0,0.00537]
[1752249146031,0.001,117180.0,117170.0,0.09079993]
[1752249146191,0.001,117180.0,117170.0,0.14339993]
[1752249147702,0.00214999,117190.0,117170.0,0.11629993]
[1752249147945,0.00214999,117190.0,117180.0,0.11172993]
[1752249148156,0.00214999,117190.0,117180.0,0.11699993]
[1752249149292,0.00314999,117190.0,117180.0,0.11699993]
[1752249149698,0.00314999,117190.0,117180.0,0.09069993]
[1752249150571,0.02559609,117200.0,117180.0,0.09069993]
[1752249151383,0.03412844,117200.0,117180.0,0.09069993]
[1752249151587,0.01706534,117190.0,117180.0,0.09069993]
[1752249151973,0.02559827,117190.0,117180.0,0.09069993]
[1752249152181,0.0255982,117190.0,117180.0,0.09069993]
[1752249152393,0.08417806,117190.0,117180.0,0.08542993]
[1752249152568,0.59837092,117190.0,117180.0,0.08542993]
[1752249152772,0.76903453,117190.0,117180.0,0.08542993]
[1752249153034,0.76050189,117190.0,117180.0,0.08542993]
[1752249153433,0.08417857,117190.0,117180.0,0.08542993]
[1752249153634,0.25484159,117190.0,117180.0,0.08542993]
[1752249154024,0.23777609,117190.0,117180.0,0.08542993]
[1752249154593,0.74343588,117190.0,117180.0,0.08542993]
[1752249154926,0.87879588,117190.0,117180.0,0.08542993]
[1752249155127,0.00853344,117180.0,117170.0,0.0001]
[1752249155470,0.02560002,117180.0,117170.0,0.08771992]
[1752249156336,0.03413368,117180.0,117170.0,0.08771992]
[1752249156544,0.01706651,117180.0,117170.0,0.09194992]
[1752249157355,0.01706651,117180.0,117170.0,0.09294992]
[1752249157615,0.02559987,117180.0,117170.0,0.09294992]
[1752249157815,0.01706651,117180.0,117170.0,0.09294992]
[1752249158105,0.00853322,117180.0,117170.0,0.09294992]
[1752249158340,0.01706578,117190.0,117170.0,0.09294992]
[1752249158518,0.01706534,117190.0,117170.0,0.09294992]
[1752249159308,0.02559827,117190.0,117170.0,0.09294992]
[1752249159659,0.03413134,117190.0,117170.0,0.09194992]
[1752249159813,0.00853322,117180.0,117170.0,0.09294992]
[1752249160009,0.03413134,117190.0,117170.0,0.09294992]
[1752249160213,0.00853322,117180.0,117170.0,0.09194992]
[1752249160456,0.23089483,117190.0,117170.0,0.09194992]
[1752249160676,0.00853329,117180.0,117170.0,0.09194992]
[1752249161235,0.01062329,117180.0,117170.0,0.08767992]
[1752249161433,1.29781247,117180.0,117170.0,0.00224999]
[1752249161701,1.32341747,117180.0,117170.0,0.00224999]
[1752249161923,1.25130962,117180.0,117170.0,0.00124999]
[1752249162152,0.74564983,117180.0,117170.0,0.00124999]
[1752249162317,0.74564983,117180.0,117170.0,0.00224999]
[1752249162730,1.11598962,117180.0,117170.0,0.00224999]
[1752249162897,1.26585047,117180.0,117170.0,0.00224999]
[1752249163110,1.24024547,117180.0,117170.0,0.00224999]
[1752249163735,1.24024547,117180.0,117170.0,0.00124999]
[1752249163919,1.24024547,117180.0,117170.0,0.00024999]
[1752249164926,1.24424547,117180.0,117170.0,0.00024999]
[1752249165923,1.24724547,117180.0,117170.0,0.00024999]
[1752249166983,1.23270462,117180.0,117170.0,0.00024999]
[1752249168032,1.22870462,117180.0,117170.0,0.00024999]
[1752249168440,1.23170462,117180.0,117170.0,0.00024999]
[1752249168989,1.22870462,117180.0,117170.0,0.00024999]
[1752249169191,1.22870462,117180.0,117140.0,0.002]
[1752249169192,0.1963286,117150.0,117140.0,0.002]
[1752249169321,1.72772263,117150.0,117140.0,0.002]
[1752249169528,1.72772263,117150.0,117110.0,0.00040477]
[1752249169529,0.51930312,117120.0,117110.0,0.00040477]
[1752249169737,1.21357291,117120.0,117110.0,0.00040477]
[1752249169944,1.21357291,117120.0,117110.0,0.00090166]
[1752249170194,0.71100312,117120.0,117110.0,0.00090166]
[1752249170415,0.68540312,117120.0,117110.0,0.00285166]
[1752249170582,0.68231312,117120.0,117110.0,0.00285166]
[1752249171231,0.68331312,117120.0,117110.0,0.00285166]
[1752249171399,0.70500459,117120.0,117110.0,0.00285166]
[1752249172801,0.67940459,117120.0,117110.0,0.00285166]
[1752249173018,0.54114411,117120.0,117110.0,0.00285166]
[1752249173248,0.68585276,117120.0,117110.0,0.00285166]
[1752249173473,1.24739255,117120.0,117110.0,0.00090166]
[1752249174051,0.74173276,117120.0,117110.0,0.00090166]
[1752249174654,0.23001843,117110.0,117100.0,0.01369257]
[1752249174924,1.59252003,117110.0,117090.0,0.995679]
[1752249175123,7.05210326,117100.0,117090.0,0.55401139]
[1752249175238,7.05519326,117100.0,117090.0,0.55401139]
[1752249175444,7.08118816,117100.0,117090.0,0.54547364]
[1752249175660,2.10681616,117100.0,117090.0,0.51559149]
[1752249175852,2.10681616,117100.0,117090.0,0.50705374]
[1752249176271,2.10981616,117100.0,117090.0,0.46863384]
[1752249176692,2.10981616,117100.0,117090.0,0.46009609]
[1752249176893,2.10981616,117100.0,117090.0,0.41266091]
[1752249176894,2.21622685,117100.0,117090.0,0.41266091]
[1752249177102,2.2184561,117100.0,117090.0,0.40412316]
[1752249177321,2.21922685,117100.0,117090.0,0.40406316]
[1752249177525,2.21922685,117100.0,117090.0,0.36564326]
[1752249177526,2.19824609,117100.0,117090.0,0.36564326]
[1752249177937,2.19824609,117100.0,117090.0,0.35710551]
[1752249178164,2.19824609,117100.0,117090.0,1e-08]
[1752249178165,6.22248812,117100.0,117090.0,1e-08]
[1752249178356,0.57933729,117060.0,117050.0,0.02041958]
[1752249178559,1.10597784,117060.0,117050.0,0.02041958]
[1752249178769,1.22344708,117060.0,117050.0,0.02041958]
[1752249179630,1.10312727,117060.0,117050.0,0.02041958]
[1752249179833,1.10512727,117060.0,117050.0,0.02041958]
[1752249180036,0.00249934,117060.0,117050.0,0.10894951]
[1752249180386,0.17335189,117060.0,117050.0,0.10894951]
[1752249180758,0.13585934,117060.0,117050.0,0.13594951]
[1752249180883,0.84754071,117060.0,117050.0,0.10894951]
[1752249181086,0.83045656,117060.0,117050.0,0.02041958]
[1752249181499,0.85192016,117060.0,117050.0,0.02041958]
[1752249181912,0.33771804,117060.0,117050.0,0.02141958]
[1752249182142,0.54570717,117060.0,117050.0,0.02141958]
[1752249182394,0.00049934,117060.0,117050.0,0.10994951]
[1752249182601,0.17135189,117060.0,117050.0,0.13868534]
[1752249182736,0.01758378,117060.0,117050.0,0.11294951]
[1752249182932,0.00904145,117060.0,117050.0,0.10994951]
[1752249183208,0.02612611,117060.0,117050.0,0.11494951]
[1752249183831,0.00049934,117060.0,117050.0,0.11494951]
[1752249184040,0.00904145,117060.0,117050.0,0.11494951]
[1752249184493,0.01758378,117060.0,117050.0,0.11494951]
[1752249184959,0.00049934,117060.0,117050.0,0.11494951]
[1752249185187,0.02612561,117060.0,117050.0,0.11494951]
[1752249185411,0.03466801,117060.0,117050.0,0.11494951]
[1752249185623,0.02612561,117060.0,117050.0,0.11494951]
[1752249185868,0.03466794,117060.0,117050.0,0.11494951]
[1752249186533,0.02612553,117060.0,117050.0,0.11494951]
[1752249186988,0.00049934,117060.0,117050.0,0.11494951]
[1752249187196,0.00904145,117060.0,117050.0,0.11494951]
[1752249187409,0.18843663,117060.0,117050.0,0.11494951]
[1752249187595,0.18843663,117060.0,117050.0,0.11184951]
[1752249187596,1.03718642,117060.0,117050.0,0.11184951]
[1752249187810,1.08728642,117060.0,117050.0,0.02641958]
[1752249188884,0.71389663,117060.0,117050.0,0.02641958]
[1752249189086,1.08419642,117060.0,117050.0,0.02641958]
[1752249189303,0.34049934,117060.0,117050.0,0.11501951]
[1752249189503,0.13585934,117060.0,117050.0,0.14101951]
[1752249189760,0.88248642,117060.0,117050.0,0.02641958]
[1752249189965,0.88248642,117060.0,117050.0,0.02141958]
[1752249190165,0.36828437,117060.0,117050.0,0.02141958]
[1752249190365,0.87394416,117060.0,117050.0,0.02141958]
[1752249190562,0.87394416,117060.0,117050.0,0.02041958]
[1752249191086,1.21394416,117060.0,117050.0,0.02441958]
[1752249191310,1.21394416,117060.0,117050.0,0.02141958]
[1752249191676,1.21394416,117060.0,117050.0,0.02241958]
[1752249192376,1.28193673,117060.0,117050.0,0.0138755]
[1752249192552,1.07854416,117060.0,117050.0,0.01410418]
[1752249192930,1.07854416,117060.0,117050.0,0.01210418]
[1752249193276,1.21674416,117060.0,117050.0,0.01210418]
[1752249193794,1.29777406,117060.0,117050.0,0.0035601]
[1752249193993,1.21774416,117060.0,117050.0,0.0035601]
[1752249194208,0.1879694,117040.0,117030.0,0.00065315]
[1752249194410,0.88082919,117040.0,117030.0,0.00065315]
[1752249194614,0.88381919,117040.0,117030.0,0.00065315]
[1752249195650,0.3781594,117040.0,117030.0,0.00065315]
[1752249195856,0.88381919,117040.0,117030.0,0.00065315]
[1752249196150,0.88381919,117040.0,117020.0,0.00022698]
[1752249196151,0.17944102,117030.0,117020.0,0.00022698]
[1752249196976,0.31484102,117030.0,117020.0,0.00022698]
[1752249197640,0.31484102,117030.0,117020.0,0.00322698]
[1752249197865,0.36983102,117030.0,117020.0,0.00422698]
[1752249198086,0.87549081,117030.0,117020.0,0.00422698]
[1752249198947,0.36983102,117030.0,117020.0,0.00422698]
[1752249199168,1.30092074,117030.0,117020.0,0.00422698]
[1752249199602,1.21549081,117030.0,117020.0,0.00422698]
[1752249199821,1.21759081,117030.0,117020.0,0.00422698]
[1752249200062,1.20904614,117030.0,117000.0,0.08919068]
[1752249200293,0.5280176,117010.0,117000.0,0.08919068]
[1752249200504,0.7165576,117010.0,117000.0,0.08919068]
[1752249200966,1.22310739,117010.0,117000.0,0.08919068]
[1752249201193,1.22310739,117010.0,117000.0,0.09219068]
[1752249201660,1.08716612,117010.0,117000.0,0.08919068]
[1752249201883,0.67354253,117010.0,117000.0,0.18079061]
[1752249202104,0.67354253,117010.0,117000.0,0.17879061]
[1752249202332,0.58271662,117010.0,117000.0,0.17562061]
[1752249202570,1.17368641,117010.0,117000.0,0.09019068]
[1752249202785,1.22788641,117010.0,117000.0,0.09019068]
[1752249202990,1.22788641,117010.0,117000.0,0.09029068]
[1752249203336,1.22788641,117010.0,117000.0,0.08929068]
[1752249203963,0.53051662,117010.0,117000.0,0.08929068]
[1752249204161,0.72226662,117010.0,117000.0,0.08929068]
[1752249204375,1.22792641,117010.0,117000.0,0.08929068]
[1752249204580,1.23192641,117010.0,117000.0,0.09029068]
[1752249205022,1.22892641,117010.0,117000.0,0.08929068]
[1752249205226,1.22992641,117010.0,117000.0,0.08929068]
[1752249205842,1.22988641,117010.0,117000.0,0.08929068]
[1752249206268,0.58471662,117010.0,117000.0,0.08929068]
[1752249206447,0.66703662,117010.0,117000.0,0.08929068]
[1752249206691,0.48752464,117010.0,117000.0,0.08929068]
[1752249206911,0.48752464,117010.0,117000.0,0.17789061]
[1752249206912,0.34249873,117010.0,117000.0,0.17789061]
[1752249207114,0.00249873,117010.0,117000.0,0.23249061]
[1752249207744,0.01004435,117010.0,117000.0,0.23249061]
[1752249207870,0.01859018,117010.0,117000.0,0.17789061]
[1752249208080,0.03468229,117010.0,117000.0,0.17989061]
[1752249208282,0.04322856,117010.0,117000.0,0.18389061]
[1752249208485,0.02613667,117010.0,117000.0,0.18389061]
[1752249208701,0.1885161,117010.0,117000.0,0.18389061]
[1752249208886,0.19706223,117010.0,117000.0,0.18389061]
[1752249209086,0.19706223,117010.0,117000.0,0.17989061]
[1752249209087,0.2056085,117010.0,117000.0,0.17989061]
[1752249209375,0.19706267,117010.0,117000.0,0.18189061]
[1752249210020,0.19706267,117010.0,117000.0,0.17989061]
[1752249210447,0.32491669,117010.0,117000.0,0.18089061]
[1752249211112,0.31637056,117010.0,117000.0,0.18089061]
[1752249211334,0.70346717,117010.0,117000.0,0.17772061]
[1752249211550,0.65936056,117010.0,117000.0,0.09229068]
[1752249212003,1.22032035,117010.0,117000.0,0.09229068]
[1752249212236,0.71466056,117010.0,117000.0,0.09229068]
[1752249212454,1.22032035,117010.0,117000.0,0.09229068]
[1752249213105,0.71466056,117010.0,117000.0,0.09229068]
[1752249213567,1.22032035,117010.0,117000.0,0.09229068]
[1752249213776,1.22032035,117010.0,117000.0,0.07474647]
[1752249214010,0.71466056,117010.0,117000.0,0.07474647]
[1752249214226,1.08246216,116990.0,116980.0,0.20045102]
[1752249214438,6.09700301,116990.0,116980.0,0.20045102]
[1752249214656,6.09700301,116990.0,116980.0,0.19190681]
[1752249214657,6.09999301,116990.0,116980.0,0.19190681]
[1752249214878,6.09999301,116990.0,116980.0,0.16200207]
[1752249215078,5.59433322,116990.0,116980.0,0.15345611]
[1752249215337,5.59433322,116990.0,116980.0,0.14491015]
[1752249215556,6.37603341,116990.0,116980.0,0.11599926]
[1752249215799,0.87037362,116990.0,116980.0,0.1074533]
[1752249216036,5.87037362,116990.0,116980.0,0.07754241]
[1752249216279,5.87037362,116990.0,116980.0,0.06899645]
[1752249216519,6.37603341,116990.0,116980.0,0.06045049]
[1752249216757,6.37603341,116990.0,116980.0,0.0305396]
[1752249216758,5.87037362,116990.0,116980.0,0.0305396]
[1752249217001,1.01613362,116990.0,116980.0,0.02199364]
[1752249217236,0.87437362,116990.0,116980.0,0.02199364]
[1752249217497,0.75567277,116990.0,116980.0,0.01344768]
[1752249217957,0.75567277,116990.0,116980.0,0.00490172]
[1752249218435,0.52808189,116970.0,116960.0,0.00317]
[1752249218862,0.34854883,116970.0,116960.0,0.00317]
[1752249219122,0.01709605,116980.0,116960.0,0.02847]
[1752249219342,0.0170973,116970.0,116960.0,0.14239993]
[1752249219563,0.01709715,116970.0,116960.0,0.13922993]
[1752249219787,0.00349873,116970.0,116960.0,0.14022993]
[1752249220037,0.00049873,116970.0,116960.0,0.14449741]
[1752249220453,0.00049873,116970.0,116960.0,0.66469805]
[1752249220662,0.00049873,116970.0,116960.0,0.66256057]
[1752249220875,0.00249873,116970.0,116960.0,0.15690078]
[1752249221091,0.00249873,116970.0,116960.0,0.90279616]
[1752249221316,0.00049873,116970.0,116960.0,0.39499889]
[1752249221535,0.00049873,116970.0,116960.0,0.90065868]
[1752249221753,0.001,116980.0,116970.0,0.20262288]
[1752249221963,0.001,116980.0,116970.0,0.16025061]
[1752249222640,0.001,116980.0,116970.0,0.14570976]
[1752249222871,0.001,116980.0,116970.0,0.29578976]
[1752249223108,0.03519269,116980.0,116970.0,0.14570976]